bitfinex-derivatives/quotes_ETHF0:USTF0_20250911
["timestamp","ask_amount","ask_price","bid_price","bid_amount"]
[1757634389273,3.5285,4462.0,4461.9,0.8246]
[1757634389472,3.526,4462.0,4461.9,0.8246]
[1757634390977,3.8418,4462.0,4461.9,0.8246]
[1757634391684,0.634,4462.0,4461.9,0.8246]
[1757634392383,0.32156063,4462.2,4461.9,0.6256]
[1757634392686,0.00336063,4462.2,4462.1,0.5996]
[1757634392878,0.00336063,4462.2,4462.1,0.8246]
[1757634393386,0.3182,4462.9,4462.1,8.05750999]
[1757634393580,0.3182,4462.9,4462.8,0.4006]
[1757634393886,0.3182,4462.9,4462.8,0.8246]
[1757634394086,0.3182,4462.9,4462.8,41.6246]
[1757634394780,0.3182,4463.2,4462.8,41.4256]
[1757634395089,0.3182,4463.5,4463.4,0.5996]
[1757634395386,0.3182,4463.5,4463.4,0.8246]
[1757634395586,0.5125,4463.9,4463.8,0.4006]
[1757634395778,0.5125,4463.9,4463.8,0.6256]
[1757634395980,0.7228,4463.9,4463.8,0.6256]
[1757634398886,0.5125,4463.9,4463.8,0.8246]
[1757634399288,0.5125,4463.9,4463.8,0.6256]
[1757634399989,0.7228,4463.9,4463.8,0.6256]
[1757634401079,0.1215,4464.5,4463.8,0.6256]
[1757634401285,0.5261,4464.5,4464.4,0.1992]
[1757634401586,0.5261,4465.0,4464.9,0.4006]
[1757634401797,0.8443,4465.0,4464.9,0.4006]
[1757634402489,0.8443,4465.0,4464.9,0.5996]
[1757634402693,0.634,4465.0,4464.9,0.5996]
[1757634403884,0.5125,4465.0,4464.9,0.5996]
[1757634404087,0.634,4465.0,4464.9,0.5996]
[1757634404284,0.8443,4465.0,4464.9,0.4006]
[1757634405098,0.8443,4465.0,4464.8,0.226]
[1757634407899,0.8443,4465.0,4464.9,0.1992]
[1757634409100,0.8443,4465.0,4464.9,0.4006]
[1757634409401,0.634,4465.0,4464.9,0.5996]
[1757634409596,0.3182,4465.4,4464.8,0.425]
[1757634409900,0.7228,4465.4,4465.3,0.1992]
[1757634410501,0.7228,4465.4,4465.3,0.4006]
[1757634410799,0.7228,4465.4,4465.3,0.5996]
[1757634411700,0.7228,4465.4,4465.3,41.3996]
[1757634411904,0.7228,4465.4,4465.3,41.2006]
[1757634412994,0.1943,4465.4,4465.3,40.8]
[1757634413301,0.5125,4465.4,4465.3,40.8]
[1757634414605,0.5125,4465.4,4465.3,40.9985]
[1757634414998,0.3182,4465.4,4465.3,40.9985]
[1757634419099,0.3182,4465.4,4465.3,42.76806488]
[1757634420702,0.8133,4466.0,4465.9,0.1961]
[1757634420910,0.8133,4466.0,4465.9,0.4211]
[1757634424112,0.8133,4466.0,4465.9,0.6326]
[1757634425111,0.8133,4466.0,4465.9,0.4211]
[1757634425305,0.8133,4466.0,4465.9,0.225]
[1757634429912,0.6186,4465.5,4465.4,0.4076]
[1757634430103,0.6186,4465.5,4465.4,0.6326]
[1757634430104,0.8206,4465.5,4465.4,0.6326]
[1757634433510,0.8206,4465.5,4465.4,0.8316]
[1757634434410,0.6225,4465.5,4465.4,0.8316]
[1757634434610,0.8206,4465.5,4465.4,0.6326]
[1757634434810,0.8206,4465.5,4465.4,0.4211]
[1757634435420,0.8206,4465.5,4465.4,0.6326]
[1757634435817,0.8206,4465.5,4465.4,0.8316]
[1757634436316,0.8206,4465.5,4465.4,0.6326]
[1757634436620,0.8206,4465.5,4465.4,0.8316]
[1757634437124,0.6225,4465.5,4465.4,0.8316]
[1757634437516,0.2917,4465.9,4465.4,0.6326]
[1757634437726,0.6918,4465.9,4465.8,0.4076]
[1757634437915,0.6918,4465.9,4465.8,0.6326]
[1757634438421,0.6918,4465.9,4465.8,0.4211]
[1757634438821,0.6918,4465.9,4465.8,0.225]
[1757634441023,0.2917,4465.4,4465.1,1.60819733]
[1757634441218,0.6918,4465.2,4465.1,0.225]
[1757634441529,0.6918,4464.3,4464.2,0.1961]
[1757634441727,0.6918,4464.3,4464.2,0.4211]
[1757634442023,0.6918,4464.3,4464.2,41.2211]
[1757634442223,0.6918,4464.3,4464.2,43.04340418]
[1757634442915,3.2078,4465.4,4464.6,0.3116]
[1757634443111,0.4001,4464.7,4464.3,0.3116]
[1757634443324,0.4001,4464.3,4464.2,40.8]
[1757634443624,0.4001,4464.3,4464.2,41.025]
[1757634443819,0.4001,4464.3,4464.2,40.8]
[1757634444023,4.4001,4464.3,4464.0,0.00336063]
[1757634444320,0.22401,4464.2,4464.0,0.00336063]
[1757634444525,0.4001,4463.4,4463.3,0.225]
[1757634444825,0.6918,4463.4,4463.3,0.225]
[1757634449428,0.6918,4463.4,4463.3,0.7237]
[1757634449733,0.6918,4463.4,4463.3,0.9357]
[1757634449925,0.6918,4463.4,4463.3,0.225]
[1757634450528,0.6918,4463.4,4463.3,0.7237]
[1757634450832,0.6918,4463.4,4463.3,0.9357]
[1757634454030,0.6918,4463.4,4463.3,0.225]
[1757634455628,0.6918,4463.4,4463.3,0.421]
[1757634455829,0.202,4463.4,4463.3,0.9357]
[1757634456133,3.7331,4463.5,4463.4,0.7107]
[1757634457031,0.722,4463.5,4463.4,0.7107]
[1757634457235,0.8426,4463.5,4463.3,0.225]
[1757634457636,0.722,4463.4,4463.3,0.7237]
[1757634459332,0.722,4463.4,4463.3,0.225]
[1757634460736,0.722,4463.4,4463.3,0.421]
[1757634461039,0.722,4463.4,4463.3,0.196]
[1757634461443,0.722,4463.4,4463.3,0.4987]
[1757634462641,0.722,4463.4,4463.3,0.196]
[1757634462837,0.722,4463.4,4463.2,0.225]
[1757634463038,0.722,4463.4,4463.0,3.5105]
[1757634463331,0.1206,4463.5,4463.0,3.5105]
[1757634463332,0.4055,4463.2,4463.1,0.225]
[1757634463637,0.722,4463.2,4463.1,0.225]
[1757634463938,0.4055,4462.6,4462.5,0.4987]
[1757634464137,0.722,4462.6,4462.5,0.421]
[1757634464338,0.722,4462.6,4462.5,41.221]
[1757634464843,0.722,4462.6,4462.5,41.5237]
[1757634465731,0.722,4462.6,4462.5,41.6402]
[1757634466545,0.5253,4462.6,4462.5,41.6402]
[1757634466835,3.3284,4463.5,4462.9,0.7107]
[1757634467043,0.722,4463.4,4463.3,0.7107]
[1757634468838,3.2078,4463.5,4463.4,0.3027]
[1757634469145,3.2078,4463.5,4463.4,0.7107]
[1757634469546,3.9298,4463.5,4463.4,0.7107]
[1757634469745,4.0504,4463.5,4463.4,0.4987]
[1757634470438,4.0504,4463.5,4463.4,0.7107]
[1757634470640,3.9298,4463.5,4463.4,0.7107]
[1757634470843,0.722,4463.5,4463.4,0.7107]
[1757634471440,0.2088,4463.8,4463.7,0.408]
[1757634471744,0.5253,4463.8,4463.7,0.7107]
[1757634471941,0.722,4463.8,4463.7,0.7107]
[1757634473539,3.3366,4464.0,4463.7,0.7107]
[1757634473540,3.2078,4464.0,4463.7,0.7107]
[1757634473739,0.1206,4465.0,4464.5,0.7107]
[1757634473740,0.722,4464.6,4464.5,0.7107]
[1757634474444,0.2088,4464.6,4464.5,0.8272]
[1757634474649,0.5253,4464.9,4464.8,0.7107]
[1757634475346,0.722,4464.9,4464.8,0.7107]
[1757634480853,3.2078,4465.1,4465.0,0.119]
[1757634481054,3.2078,4465.1,4465.0,0.84]
[1757634481746,3.2078,4465.1,4465.0,1.065]
[1757634482452,3.4131,4465.1,4465.0,1.065]
[1757634482654,3.7144,4465.1,4465.0,1.065]
[1757634482948,3.9198,4465.1,4465.0,0.946]
[1757634485149,3.9198,4465.1,4465.0,1.065]
[1757634485455,3.2078,4465.1,4465.0,1.065]
[1757634485857,3.4131,4465.1,4465.0,1.065]
[1757634486951,3.2078,4465.1,4465.0,1.065]
[1757634487354,0.3013,4465.3,4465.0,1.065]
[1757634487555,0.5066,4465.3,4465.2,0.42]
[1757634487756,0.5066,4465.3,4465.2,0.721]
[1757634489646,0.5066,4465.3,4465.2,41.521]
[1757634489845,0.5066,4465.3,4465.2,41.22]
[1757634491358,0.5066,4465.3,4465.2,41.521]
[1757634493557,0.5066,4465.3,4465.2,40.8]
[1757634493957,0.4107,4465.2,4465.1,0.225]
[1757634494164,0.712,4465.2,4465.1,0.225]
[1757634494558,0.712,4465.2,4465.1,41.025]
[1757634495662,0.712,4465.2,4465.1,40.8]
[1757634495862,0.1245,4465.0,4464.8,0.225]
[1757634496063,0.712,4464.9,4464.8,0.225]
[1757634498367,0.712,4464.9,4464.8,0.946]
[1757634502657,3.2078,4465.3,4464.8,0.645]
[1757634502859,0.712,4465.2,4465.1,0.721]
[1757634503464,0.712,4465.2,4465.1,0.2044]
[1757634503764,0.4107,4464.9,4464.8,0.7304]
[1757634503967,0.712,4464.9,4464.8,0.7304]
[1757634504168,0.712,4464.9,4464.4,0.301]
[1757634504365,0.3013,4464.8,4464.5,0.301]
[1757634504565,0.712,4464.6,4464.5,0.5054]
[1757634504970,0.712,4464.6,4464.4,0.225]
[1757634505170,3.2078,4464.8,4464.2,0.526]
[1757634505171,0.8365,4464.5,4464.2,0.526]
[1757634505469,0.712,4464.3,4464.2,0.7304]
[1757634506272,0.712,4464.3,4464.2,0.225]
[1757634506568,3.9198,4464.3,4464.2,0.225]
[1757634506772,3.6185,4464.3,4463.7,40.8]
[1757634506975,0.712,4463.8,4463.6,0.301]
[1757634507368,0.712,4463.8,4463.7,0.2044]
[1757634507766,0.712,4463.8,4463.5,0.225]
[1757634508270,0.3024,4463.7,4462.8,0.3055]
[1757634508473,0.3024,4462.9,4462.8,0.6992]
[1757634508669,0.3024,4462.9,4462.8,41.4992]
[1757634510371,0.3024,4462.9,4462.8,40.8]
[1757634510674,0.1273,4463.0,4462.4,0.3055]
[1757634510675,0.7121,4462.5,4462.4,0.6992]
[1757634510865,0.8394,4462.5,4462.4,0.6992]
[1757634512272,0.7121,4462.5,4462.4,0.6992]
[1757634514079,0.8394,4462.5,4462.4,0.1985]
[1757634514678,0.8394,4462.5,4462.4,0.504]
[1757634515981,0.8394,4462.5,4462.4,0.6992]
[1757634516280,0.7121,4462.5,4462.4,0.6992]
[1757634517879,0.8394,4462.5,4462.2,0.225]
[1757634518082,0.3024,4462.4,4461.7,0.5305]
[1757634518277,0.1273,4462.5,4461.7,0.9242]
[1757634518278,0.2094,4461.8,4461.7,0.9242]
[1757634518580,0.5118,4461.8,4461.7,41.7242]
[1757634519879,0.2094,4461.8,4461.7,41.7242]
[1757634520073,0.3024,4462.4,4462.3,0.1985]
[1757634520276,0.7121,4462.4,4462.3,0.1985]
[1757634525084,0.7121,4462.4,4461.8,0.3055]
[1757634526688,0.2094,4461.9,4461.8,0.6992]
[1757634526878,0.5118,4461.9,4461.8,0.6992]
[1757634528882,0.7121,4461.9,4461.7,0.225]
[1757634529087,0.4097,4461.2,4461.1,3.7118]
[1757634529288,0.7121,4461.2,4461.1,3.7118]
[1757634529585,0.7121,4461.2,4461.1,44.932]
[1757634529781,0.7121,4461.2,4461.1,3.6313]
[1757634529984,0.1273,4461.5,4460.5,0.3055]
[1757634529985,0.3024,4460.8,4460.5,0.3055]
[1757634530188,0.7121,4460.8,4460.7,0.1985]
[1757634530582,0.7121,4460.8,4460.7,0.504]
[1757634530784,0.7121,4460.8,4460.7,0.1985]
[1757634530989,0.7121,4460.8,4460.5,0.225]
[1757634531289,0.1273,4461.0,4460.1,32.271]
[1757634531290,0.4097,4460.4,4460.1,0.5305]
[1757634531590,0.7121,4460.3,4460.2,0.1985]
[1757634531981,0.3024,4460.2,4460.1,0.225]
[1757634532186,0.7121,4460.2,4460.1,0.225]
[1757634533187,0.1273,4460.0,4459.8,0.3055]
[1757634533382,0.537,4460.0,4459.8,0.3055]
[1757634533582,0.8394,4460.0,4459.8,0.3055]
[1757634534688,0.8394,4460.0,4459.9,3.4063]
[1757634535090,0.8394,4460.0,4459.9,3.2078]
[1757634535986,0.8394,4460.0,4459.9,3.7118]
[1757634536585,0.8394,4460.0,4459.9,3.907]
[1757634536784,0.7121,4460.0,4459.9,3.907]
[1757634537893,0.7121,4460.0,4459.9,0.6992]
[1757634541292,0.5303,4459.5,4459.4,0.9111]
[1757634541496,0.5303,4459.8,4459.7,0.6861]
[1757634544196,3.2078,4460.2,4459.8,0.2919]
[1757634544400,3.9461,4460.2,4460.1,0.6861]
[1757634546910,3.9461,4460.2,4460.1,0.1942]
[1757634547208,0.7383,4459.9,4459.8,0.4861]
[1757634547811,0.7383,4459.9,4459.8,0.1942]
[1757634548804,0.124,4460.0,4459.4,0.225]
[1757634548805,0.8623,4459.5,4459.4,0.225]
[1757634549104,0.8623,4459.5,4458.8,0.2919]
[1757634549105,0.545,4459.5,4458.8,0.2919]
[1757634549409,0.5303,4459.0,4458.9,41.7111]
[1757634550003,0.8623,4459.0,4458.9,0.9111]
[1757634550304,0.7383,4459.0,4458.9,0.6861]
[1757634552007,0.8623,4459.0,4458.9,0.6861]
[1757634554399,0.7383,4459.0,4458.9,0.6861]
[1757634555206,0.8623,4459.0,4458.9,0.6861]
[1757634557905,0.8623,4459.0,4458.7,0.2919]
[1757634558498,0.8623,4459.0,4458.6,0.226]
[1757634558908,0.545,4459.0,4458.6,0.5179]
[1757634559217,0.7383,4458.7,4458.6,0.4861]
[1757634559715,0.7383,4458.7,4458.6,0.6861]
[1757634565514,0.7383,4458.7,4458.3,0.2919]
[1757634565704,0.7383,4458.7,4458.2,0.225]
[1757634565910,0.7383,4458.7,4458.6,0.4861]
[1757634574914,0.7383,4458.7,4458.2,0.225]
[1757634575120,0.7135,4458.4,4458.3,0.5216]
[1757634576619,0.7135,4458.4,4458.3,0.7197]
[1757634577327,3.2078,4459.1,4458.7,0.7197]
[1757634577328,0.5165,4458.8,4458.7,0.7197]
[1757634577719,0.7281,4458.8,4458.7,0.7197]
[1757634580530,0.5031,4458.8,4458.7,0.7197]
[1757634580728,3.2078,4459.1,4459.0,0.5335]
[1757634580927,0.7135,4459.3,4459.2,0.7197]
[1757634581128,0.7135,4459.0,4458.9,0.7197]
[1757634581528,0.5031,4459.0,4458.9,0.7197]
[1757634585526,3.4993,4459.6,4459.5,0.123]
[1757634585724,3.4194,4459.6,4459.5,0.8427]
[1757634585920,3.9213,4459.6,4459.5,0.7197]
[1757634589038,0.7135,4459.6,4459.5,0.7197]
[1757634592637,3.2078,4460.2,4460.0,0.123]
[1757634592638,3.4993,4460.2,4460.0,0.123]
[1757634592839,3.7109,4460.2,4460.1,0.7197]
[1757634593130,3.9213,4460.2,4460.1,0.7197]
[1757634594741,0.7135,4460.2,4460.1,0.7197]
[1757634595837,0.7135,4459.8,4459.7,40.8]
[1757634596141,0.2915,4459.3,4459.2,0.225]
[1757634596348,0.7135,4459.3,4459.2,0.7466]
[1757634596643,0.7135,4459.3,4459.2,41.5466]
[1757634597046,0.7135,4459.3,4459.2,0.9447]
[1757634599345,0.7135,4459.3,4459.2,0.7197]
[1757634599544,0.7135,4459.3,4459.2,0.4374]
[1757634599745,0.7135,4459.3,4459.2,0.754]
[1757634600148,0.7135,4459.3,4459.2,0.9628]
[1757634608849,0.5144,4459.9,4459.8,0.7285]
[1757634609043,0.199,4459.9,4459.8,0.7285]
[1757634609239,0.5144,4459.9,4459.8,0.7285]
[1757634609440,0.7132,4459.9,4459.8,0.7285]
[1757634611250,0.7132,4459.4,4459.1,0.3166]
[1757634611451,0.3978,4459.4,4459.1,0.3166]
[1757634611747,0.7132,4459.2,4459.1,0.5197]
[1757634613847,0.7132,4459.2,4459.1,0.7285]
[1757634615352,0.7132,4459.2,4459.1,2.33407534]
[1757634615552,0.7132,4459.2,4459.1,0.7285]
[1757634616069,0.5144,4459.2,4459.1,2.33407534]
[1757634616353,0.199,4459.2,4459.1,0.7285]
[1757634616555,3.2078,4459.7,4459.2,0.3166]
[1757634616744,3.2078,4459.7,4459.0,1.73347534]
[1757634616745,3.921,4459.7,4459.6,0.2031]
[1757634618453,3.921,4459.7,4459.6,0.5197]
[1757634620552,3.921,4459.7,4459.6,0.2031]
[1757634623057,4.146,4459.7,4459.6,0.2031]
[1757634623853,3.921,4459.7,4459.6,0.2031]
[1757634624054,3.921,4459.7,4459.6,0.7285]
[1757634624658,0.225,4460.1,4459.7,0.3166]
[1757634624854,0.225,4460.1,4460.0,0.7285]
[1757634624855,0.9382,4460.1,4460.0,0.7285]
[1757634625359,0.9382,4460.1,4460.0,0.5197]
[1757634626060,0.7132,4460.1,4460.0,0.5197]
[1757634629857,3.2078,4460.2,4460.1,0.6968]
[1757634630756,0.3189,4460.2,4460.1,0.6968]
[1757634630956,0.5241,4460.2,4460.1,0.6968]
[1757634635862,3.2078,4461.8,4461.1,0.2963]
[1757634636064,3.2078,4461.8,4461.7,0.6968]
[1757634636368,0.3189,4462.0,4461.7,0.4005]
[1757634636565,0.2052,4461.9,4461.8,0.2963]
[1757634636770,0.5241,4461.9,4461.8,0.6968]
[1757634638265,0.3189,4462.4,4461.9,0.2963]
[1757634638465,0.5241,4462.4,4462.3,0.6968]
[1757634638662,0.3189,4462.7,4462.6,0.6968]
[1757634639361,0.5241,4462.7,4462.6,0.6968]
[1757634639867,0.7301,4462.7,4462.6,0.1981]
[1757634641371,0.8554,4462.5,4462.4,0.1981]
[1757634641667,0.8554,4462.5,4462.4,0.4944]
[1757634642470,0.7301,4462.5,4462.4,0.6968]
[1757634642867,0.2052,4462.5,4462.4,0.6968]
[1757634643070,0.4112,4462.9,4462.8,0.4005]
[1757634643270,0.7301,4462.9,4462.8,0.6968]
[1757634644173,0.7301,4462.9,4462.2,0.2963]
[1757634644572,0.7301,4462.9,4462.2,0.5233]
[1757634644774,0.4112,4462.3,4462.2,0.7214]
[1757634644971,0.7301,4462.3,4462.2,0.9238]
[1757634645375,0.7301,4462.3,4462.2,0.1981]
[1757634646076,0.3189,4462.2,4462.1,0.1981]
[1757634646374,0.3189,4462.2,4462.1,0.4944]
[1757634646571,0.7301,4462.2,4462.1,0.4944]
[1757634646872,0.3189,4462.2,4462.1,0.6968]
[1757634647277,0.3189,4462.9,4462.2,0.2963]
[1757634647481,0.7301,4462.9,4462.8,0.1981]
[1757634648678,0.7301,4462.9,4462.8,0.4944]
[1757634649177,0.7301,4462.9,4462.8,0.1981]
[1757634649577,0.7301,4462.9,4462.5,0.2963]
[1757634649778,0.7301,4462.9,4462.1,0.2963]
[1757634652373,0.4112,4462.2,4461.8,0.2963]
[1757634652577,0.3189,4462.4,4461.6,40.8]
[1757634652578,0.7301,4461.8,4461.7,0.6968]
[1757634652981,3.2078,4462.0,4461.8,0.2963]
[1757634653275,0.5241,4462.2,4462.1,0.6968]
[1757634657188,0.7301,4462.2,4462.1,0.6968]
[1757634657986,0.7301,4462.2,4462.1,0.1981]
[1757634658287,0.7349,4461.8,4461.7,0.7438]
[1757634658492,0.7349,4461.8,4461.7,0.5168]
[1757634658878,0.7349,4461.8,4461.7,0.7248]
[1757634660391,0.3094,4461.8,4461.7,0.7248]
[1757634660591,0.5217,4461.8,4461.7,0.7248]
[1757634662287,0.5217,4461.8,4461.7,0.9518]
[1757634662492,0.3094,4462.1,4461.7,0.9518]
[1757634662687,0.3094,4462.4,4461.8,0.3142]
[1757634662896,0.2123,4461.9,4461.8,0.7248]
[1757634663086,0.5217,4461.9,4461.8,0.7248]
[1757634663690,0.7349,4461.9,4461.8,0.3142]
[1757634663886,0.7349,4461.9,4461.7,0.227]
[1757634664288,0.7349,4461.9,4461.8,0.5168]
[1757634665191,0.7349,4461.9,4461.8,0.7248]
[1757634667495,0.5217,4461.9,4461.8,0.7248]
[1757634667988,0.7349,4461.9,4461.8,0.7248]
[1757634668395,0.7349,4461.9,4461.7,0.227]
[1757634669788,0.3094,4461.8,4461.7,0.5412]
[1757634669994,0.7349,4461.8,4461.7,0.7438]
[1757634670586,0.7349,4461.8,4461.7,0.227]
[1757634670791,0.4255,4461.4,4461.2,1.60595444]
[1757634671091,0.3094,4460.9,4460.7,1.92015444]
[1757634671292,0.7349,4460.8,4460.7,0.5168]
[1757634671796,0.7349,4460.8,4460.7,0.2026]
[1757634671996,0.7349,4460.8,4460.5,1.60595444]
[1757634671997,0.3094,4460.7,4460.5,1.60595444]
[1757634672298,0.852,4460.5,4460.4,0.4296]
[1757634673097,0.852,4460.5,4460.4,0.227]
[1757634673491,0.852,4460.5,4460.4,0.7438]
[1757634674596,0.852,4460.5,4460.4,0.4296]
[1757634675095,0.852,4460.5,4460.1,0.3142]
[1757634675290,0.7349,4460.5,4460.4,0.7248]
[1757634676499,0.852,4460.5,4460.4,0.7248]
[1757634676898,0.7349,4460.5,4460.4,0.7248]
[1757634678096,3.4201,4460.7,4460.6,0.4106]
[1757634678400,3.9427,4460.7,4460.1,0.3142]
[1757634681593,3.9427,4460.7,4460.6,0.2026]
[1757634681898,3.9427,4460.7,4460.6,0.7248]
[1757634682292,0.3094,4461.0,4460.6,0.7248]
[1757634682497,0.3094,4461.0,4460.7,0.3142]
[1757634682798,0.5217,4461.0,4460.9,0.7248]
[1757634683894,3.2078,4461.8,4461.2,0.7248]
[1757634684104,0.3094,4462.2,4461.7,0.4106]
[1757634684294,0.7349,4462.2,4462.1,0.7248]
[1757634687905,0.4114,4461.8,4461.7,0.4274]
[1757634688102,0.4114,4461.4,4461.3,0.227]
[1757634688301,0.2968,4461.3,4460.9,0.227]
[1757634688494,0.7082,4460.7,4460.6,0.7131]
[1757634688701,0.7082,4460.7,4460.6,0.9401]
[1757634689006,0.7082,4460.7,4460.6,41.7401]
[1757634690903,0.227,4461.4,4460.1,0.3054]
[1757634690904,0.1227,4460.5,4460.1,0.3054]
[1757634691107,0.7082,4460.2,4460.1,0.7131]
[1757634691500,0.7082,4460.2,4460.1,41.5131]
[1757634693106,0.7082,4460.2,4460.1,0.7131]
[1757634693710,0.2968,4460.9,4460.2,0.3054]
[1757634693903,0.2968,4460.9,4460.3,0.227]
[1757634694204,3.5575,4461.0,4460.3,0.227]
[1757634694205,0.2041,4460.4,4460.3,0.9401]
[1757634696602,0.5009,4460.4,4460.3,0.9401]
[1757634700004,0.4114,4460.4,4460.0,40.8]
[1757634700206,0.7082,4460.1,4460.0,0.5058]
[1757634700401,0.7082,4460.1,4460.0,0.7131]
[1757634700614,0.2041,4460.4,4460.3,0.4077]
[1757634700804,0.5009,4460.4,4460.3,0.7131]
[1757634701004,0.7082,4460.4,4460.3,0.7131]
[1757634705615,0.7082,4460.4,4460.0,0.227]
[1757634706008,0.7082,4460.4,4460.3,0.2004]
[1757634706308,0.7082,4460.4,4460.1,0.3054]
[1757634706614,0.7082,4459.9,4459.8,41.1054]
[1757634707920,0.7082,4459.9,4459.8,0.7131]
[1757634711314,0.2968,4460.4,4459.9,0.3054]
[1757634711621,0.5009,4460.9,4460.8,0.4077]
[1757634711916,0.5009,4460.9,4460.8,0.7131]
[1757634712418,0.7082,4460.9,4460.8,0.2004]
[1757634712820,0.7082,4460.9,4460.8,0.5058]
[1757634713216,0.7082,4460.9,4460.8,0.7131]
[1757634715513,0.7082,4460.9,4460.3,0.226]
[1757634715711,0.7082,4460.9,4460.4,0.3054]
[1757634715910,0.7082,4460.9,4460.3,0.226]
[1757634716709,0.7082,4460.9,4460.4,0.3054]
[1757634717013,0.7082,4460.9,4460.3,0.226]
[1757634717715,0.7082,4460.9,4460.4,0.32]
[1757634718512,0.8608,4460.5,4460.4,0.5347]
[1757634718716,0.8608,4460.5,4460.4,0.2147]
[1757634719810,0.8608,4460.5,4460.1,0.32]
[1757634720221,0.8608,4460.5,4459.9,0.32]
[1757634723326,0.2098,4460.0,4459.9,0.7331]
[1757634723516,0.5234,4460.0,4459.9,0.7331]
[1757634724628,0.2098,4460.0,4459.9,0.7331]
[1757634724923,3.2078,4460.4,4460.2,0.7331]
[1757634725114,3.2078,4460.4,4460.3,0.7331]
[1757634725522,0.3136,4460.6,4460.3,0.7331]
[1757634725820,0.3136,4460.6,4460.2,0.226]
[1757634725821,3.2078,4460.9,4460.8,0.7331]
[1757634727125,3.4176,4460.9,4460.8,0.7331]
[1757634727426,3.7312,4460.9,4460.8,0.7331]
[1757634731027,3.9407,4460.9,4460.8,0.7331]
[1757634732332,0.7329,4460.7,4460.6,0.226]
[1757634733126,3.2078,4460.9,4460.1,0.32]
[1757634733127,0.4193,4460.2,4460.1,0.546]
[1757634733330,0.7329,4460.2,4460.1,0.7607]
[1757634734324,0.7329,4460.2,4460.1,0.4407]
[1757634735229,0.7329,4460.2,4460.1,0.7607]
[1757634736035,0.7329,4460.2,4460.1,0.4407]
[1757634736334,0.7329,4460.2,4460.1,0.7607]
[1757634736536,0.7329,4460.2,4460.1,0.9591]
[1757634738934,0.7329,4460.8,4460.7,0.7331]
[1757634743632,0.5234,4460.8,4460.7,0.7331]
[1757634744035,0.4193,4460.8,4460.2,0.32]
[1757634744236,0.4193,4460.3,4460.2,0.5347]
[1757634744436,0.7329,4460.3,4460.2,0.5347]
[1757634745037,0.7329,4460.3,4460.2,0.2147]
[1757634745537,0.7329,4460.3,4460.2,0.5347]
[1757634746040,0.7329,4460.3,4460.2,0.2147]
[1757634746228,0.7329,4460.3,4460.1,0.226]
[1757634751753,0.3993,4459.6,4459.5,0.7205]
[1757634751948,0.7174,4459.6,4459.5,0.7205]
[1757634753060,0.7174,4459.6,4459.5,0.84]
[1757634753256,0.7174,4459.6,4459.4,1.81226888]
[1757634753257,0.3181,4459.5,4459.4,1.81226888]
[1757634753461,0.8386,4459.5,4459.4,0.4306]
[1757634753959,0.8386,4459.5,4459.4,0.9465]
[1757634754158,0.7174,4459.5,4459.4,0.9465]
[1757634762464,0.8386,4459.5,4459.4,0.9465]
[1757634765566,0.3181,4459.4,4459.3,3.2078]
[1757634765760,0.7174,4459.4,4459.3,3.2078]
[1757634766864,0.7174,4459.4,4459.2,0.226]
[1757634775971,0.7174,4459.4,4458.9,0.3147]
[1757634776161,0.7174,4459.4,4458.8,0.226]
[1757634776767,0.7174,4459.4,4458.9,0.3147]
[1757634776973,0.7174,4459.4,4458.8,0.226]
[1757634777175,0.7174,4459.4,4458.9,0.3147]
[1757634777366,0.7174,4459.4,4458.8,0.226]
[1757634778363,0.7174,4459.4,4458.9,0.3117]
[1757634780267,0.7174,4459.4,4459.3,0.1959]
[1757634780678,0.7174,4459.4,4459.3,0.5076]
[1757634787680,0.2962,4459.7,4459.3,0.405]
[1757634787882,3.504,4459.8,4459.7,0.3117]
[1757634788179,3.7035,4459.8,4459.7,0.7167]
[1757634788585,3.2078,4459.8,4459.7,0.7167]
[1757634789177,3.9051,4459.8,4459.7,0.7167]
[1757634794088,0.6973,4459.8,4459.7,0.7167]
[1757634796187,0.4957,4459.8,4459.7,0.7167]
[1757634796389,0.2962,4460.2,4459.7,0.405]
[1757634796589,3.9051,4460.3,4460.2,0.5076]
[1757634798986,3.9051,4460.3,4460.2,0.7167]
[1757634805393,0.6973,4460.3,4460.2,0.7167]
[1757634809597,0.6973,4460.3,4459.8,3.4338]
[1757634809598,0.4256,4459.9,4459.8,0.7399]
[1757634809798,0.7483,4459.9,4459.8,0.226]
[1757634810504,0.7483,4459.9,4459.8,0.7399]
[1757634811401,0.7483,4459.9,4459.8,0.437]
[1757634811598,0.7483,4459.9,4459.8,0.226]
[1757634812404,0.1172,4460.0,4459.3,3.2078]
[1757634812405,0.1172,4459.5,4459.3,3.2078]
[1757634812603,0.7483,4459.4,4459.2,0.3029]
[1757634812901,0.7483,4459.4,4459.3,0.226]
[1757634814702,0.7483,4459.4,4459.3,0.7399]
[1757634817402,0.7483,4459.4,4459.3,0.9484]
[1757634819511,0.5348,4459.4,4459.3,0.9484]
[1757634819810,0.3227,4459.7,4459.6,0.4195]